bitfinex-derivatives/quotes_BTCF0:USTF0_20250506
["timestamp","ask_amount","ask_price","bid_price","bid_amount"]
[1746543122170,0.4372,94315.0,94303.0,0.0462]
[1746543122473,0.2121186,94301.0,94300.0,0.1]
[1746543122669,0.6490786,94301.0,94300.0,0.1]
[1746543123577,0.6953786,94301.0,94300.0,0.1]
[1746543123877,0.7410786,94301.0,94300.0,0.1]
[1746543127688,1.1018786,94301.0,94300.0,0.1]
[1746543128074,0.2121298,94296.0,94292.0,0.00159079]
[1746543128274,0.5201526,94296.0,94281.0,0.0469]
[1746543128481,0.5729411,94291.0,94281.0,0.0469]
[1746543128684,0.9729411,94291.0,94281.0,0.0469]
[1746543129286,0.2121546,94285.0,94281.0,0.0469]
[1746543129482,0.6595946,94285.0,94281.0,0.0469]
[1746543129986,0.6595946,94285.0,94282.0,0.0446]
[1746543130291,0.7474946,94285.0,94282.0,0.0446]
[1746543131187,0.7474946,94285.0,94275.0,0.0445]
[1746543131188,0.2121748,94276.0,94275.0,0.0445]
[1746543131496,0.6221748,94276.0,94275.0,0.05246418]
[1746543136291,0.6221748,94276.0,94275.0,0.00796418]
[1746543136489,0.2121816,94273.0,94272.0,0.2558833]
[1746543136684,0.2121816,94273.0,94272.0,0.3419833]
[1746543136685,0.6221816,94273.0,94272.0,0.3419833]
[1746543137587,0.6221816,94273.0,94272.0,0.1298]
[1746543138185,0.6221816,94273.0,94272.0,0.3078]
[1746543138792,0.6221816,94273.0,94272.0,0.31574707]
[1746543138993,0.6221816,94273.0,94272.0,0.52793097]
[1746543139396,0.6221816,94273.0,94272.0,0.31574707]
[1746543139598,0.6221816,94273.0,94272.0,0.52793097]
[1746543140092,0.6221816,94273.0,94272.0,0.27204707]
[1746543140292,0.6704816,94273.0,94272.0,0.27204707]
[1746543140492,0.6704816,94273.0,94272.0,0.2641]
[1746543140794,0.6704816,94273.0,94272.0,0.178]
[1746543141095,0.2121974,94266.0,94265.0,0.00106083]
[1746543141397,0.6393974,94266.0,94265.0,0.04856083]
[1746543142092,0.7308974,94266.0,94265.0,0.04856083]
[1746543142591,0.7308974,94266.0,94265.0,0.09246083]
[1746543143199,0.7308974,94266.0,94265.0,0.27046083]
[1746543146195,0.7308974,94266.0,94265.0,0.00106083]
[1746543150903,0.6636974,94266.0,94265.0,0.00106083]
[1746543151105,0.6859374,94266.0,94265.0,0.39126043]
[1746543151489,0.6859374,94266.0,94265.0,0.17906083]
[1746543153101,0.6859374,94266.0,94265.0,0.39126043]
[1746543153306,0.6859374,94266.0,94265.0,0.17906083]
[1746543153496,0.6184974,94266.0,94265.0,0.17906083]
[1746543153703,0.6860174,94266.0,94265.0,0.17906083]
[1746543156109,0.6860174,94266.0,94265.0,0.00106083]
[1746543161013,0.6184974,94266.0,94265.0,0.00106083]
[1746543161313,0.7530574,94266.0,94265.0,0.17906083]
[1746543161711,0.7530574,94266.0,94265.0,0.26926083]
[1746543163118,0.7530574,94266.0,94265.0,0.04566083]
[1746543164119,0.7530574,94266.0,94265.0,0.22366083]
[1746543165633,0.6858174,94266.0,94265.0,0.22366083]
[1746543166931,0.6858174,94266.0,94265.0,0.17906083]
[1746543167127,0.6858174,94266.0,94265.0,0.00106083]
[1746543175833,1.0466174,94266.0,94265.0,0.00106083]
[1746543176031,0.2122154,94258.0,94251.0,0.00159137]
[1746543176237,0.5722154,94258.0,94252.0,0.0858]
[1746543176937,0.6593154,94258.0,94252.0,0.0858]
[1746543177137,0.7263154,94258.0,94252.0,0.0858]
[1746543180043,1.0871154,94258.0,94252.0,0.0858]
[1746543181437,1.0871154,94258.0,94251.0,0.00159137]
[1746543182137,1.0871154,94258.0,94252.0,0.0837]
[1746543182340,0.6817554,94258.0,94254.0,0.3608]
[1746543182737,0.6817554,94258.0,94255.0,0.0421]
[1746543183240,0.6817554,94258.0,94256.0,0.0416]
[1746543183638,0.6817554,94258.0,94257.0,0.04369139]
[1746543184145,0.5722154,94258.0,94257.0,0.05450293]
[1746543184346,0.6392554,94258.0,94257.0,0.05450293]
[1746543184545,0.6392554,94258.0,94257.0,0.04369139]
[1746543185145,0.6392554,94258.0,94257.0,0.22169139]
[1746543186845,0.6392554,94258.0,94257.0,0.23230241]
[1746543187339,0.6392554,94258.0,94257.0,0.22169139]
[1746543191950,0.6392154,94258.0,94257.0,0.22169139]
[1746543192252,0.6392154,94258.0,94257.0,0.04369139]
[1746543193251,0.6392154,94258.0,94257.0,0.17959139]
[1746543193442,0.6392154,94258.0,94257.0,0.22189139]
[1746543193842,0.6815154,94258.0,94257.0,0.22189139]
[1746543195146,0.6815154,94258.0,94257.0,0.00159139]
[1746543197154,0.6815154,94258.0,94257.0,0.17959139]
[1746543197343,0.6815154,94258.0,94257.0,0.26249139]
[1746543200540,0.6815154,94258.0,94257.0,0.47470899]
[1746543200541,0.6145154,94258.0,94257.0,0.47470899]
[1746543200855,0.6392154,94258.0,94257.0,0.48511676]
[1746543201745,0.427,94258.0,94257.0,0.48511676]
[1746543201941,0.6392154,94258.0,94257.0,0.59120876]
[1746543202355,0.63902778,94258.0,94257.0,0.59120876]
[1746543203160,0.63902778,94258.0,94257.0,0.95200876]
[1746543203356,0.63902778,94258.0,94257.0,2.45200876]
[1746543204157,0.35981238,94258.0,94257.0,2.45200876]
[1746543204459,0.53637616,94258.0,94257.0,2.45200876]
[1746543206262,0.46937616,94258.0,94257.0,2.45200876]
[1746543206463,0.53637616,94258.0,94257.0,2.45200876]
[1746543208859,0.53637616,94258.0,94257.0,2.12329139]
[1746543209055,0.53637616,94258.0,94257.0,0.54039139]
[1746543209259,0.53637616,94258.0,94257.0,0.36239139]
[1746543209459,0.61837616,94258.0,94257.0,0.36239139]
[1746543209856,0.61837616,94258.0,94257.0,0.00159139]
[1746543211556,0.57697616,94258.0,94257.0,0.21380899]
[1746543211756,0.57697616,94258.0,94257.0,0.25630899]
[1746543212054,0.57697616,94258.0,94257.0,0.43430899]
[1746543212567,0.25716076,94258.0,94257.0,0.43430899]
[1746543212766,0.32416076,94258.0,94257.0,0.43430899]
[1746543213265,0.53637616,94258.0,94257.0,1.93430899]
[1746543213460,0.53637616,94258.0,94257.0,1.72209139]
[1746543213663,0.53637616,94258.0,94257.0,1.93430899]
[1746543214266,0.58077616,94258.0,94257.0,1.93430899]
[1746543214852,0.58077616,94258.0,94257.0,1.72209139]
[1746543215868,0.58077616,94258.0,94257.0,1.76659139]
[1746543216370,0.62177616,94258.0,94257.0,1.76659139]
[1746543217468,0.62177616,94258.0,94257.0,1.67959139]
[1746543219563,0.62177616,94258.0,94257.0,0.17959139]
[1746543220262,0.62177616,94258.0,94257.0,0.00159139]
[1746543222063,0.79977616,94258.0,94257.0,0.00159139]
[1746543223368,0.62177616,94258.0,94257.0,0.00159139]
[1746543225267,0.51377616,94258.0,94257.0,0.21380899]
[1746543225474,0.58077616,94258.0,94257.0,0.00159139]
[1746543225867,0.58077616,94258.0,94257.0,1.50159139]
[1746543226266,0.58077616,94258.0,94257.0,1.89180899]
[1746543226471,0.58077616,94258.0,94257.0,1.67959139]
[1746543226773,0.58077616,94258.0,94257.0,1.89180899]
[1746543227475,0.58077616,94258.0,94257.0,1.67959139]
[1746543227960,0.58077616,94258.0,94257.0,0.17959139]
[1746543228166,0.58077616,94258.0,94257.0,0.00159139]
[1746543228366,0.94157616,94258.0,94257.0,0.00159139]
[1746543228574,0.98187616,94258.0,94257.0,0.00159139]
[1746543228776,0.99224203,94258.0,94257.0,0.00159139]
[1746543228968,0.98187616,94258.0,94257.0,0.00159139]
[1746543230177,0.99225787,94258.0,94257.0,0.00159139]
[1746543231677,0.2122559,94240.0,94239.0,0.00790596]
[1746543231861,0.2122649,94236.0,94235.0,0.00106117]
[1746543232063,0.6022649,94236.0,94235.0,0.00106117]
[1746543232265,0.6022649,94236.0,94235.0,0.17906117]
[1746543233472,0.6022649,94236.0,94235.0,0.1869049]
[1746543233675,0.6022649,94236.0,94235.0,0.17906117]
[1746543233877,0.9630649,94236.0,94235.0,0.17906117]
[1746543234170,0.2122942,94223.0,94222.0,0.36239198]
[1746543234474,0.6292942,94223.0,94222.0,0.00159198]
[1746543235179,0.7163942,94223.0,94222.0,0.00159198]
[1746543237375,0.7163942,94223.0,94206.0,0.0847]
[1746543237376,0.2123145,94214.0,94205.0,0.00106151]
[1746543237582,1.0201145,94214.0,94205.0,0.00106151]
[1746543237880,1.0201145,94214.0,94206.0,0.0847]
[1746543238378,1.0201145,94214.0,94206.0,0.0423]
[1746543238568,1.0201145,94214.0,94205.0,0.00106151]
[1746543240874,1.03073285,94214.0,94205.0,0.00106151]
[1746543241277,0.2123325,94206.0,94205.0,0.00106151]
[1746543241472,1.0501725,94206.0,94205.0,0.00106151]
[1746543242071,1.1354725,94206.0,94205.0,0.00106151]
[1746543243475,1.14326403,94206.0,94205.0,0.00106151]
[1746543244185,0.2123438,94201.0,94200.0,0.105]
[1746543244481,0.6893438,94201.0,94200.0,0.105]
[1746543245175,0.7307438,94201.0,94200.0,0.105]
[1746543247782,0.2123708,94189.0,94188.0,0.0829]
[1746543248080,0.6894108,94189.0,94188.0,0.0829]
[1746543248278,0.6894108,94189.0,94188.0,0.2609]
[1746543249177,0.6894108,94189.0,94168.0,0.5732161]
[1746543249178,0.2124001,94176.0,94168.0,0.5732161]
[1746543249378,0.5624001,94176.0,94175.0,0.04316185]
[1746543250181,0.5624001,94176.0,94175.0,0.22116185]
[1746543257089,0.6294401,94176.0,94175.0,0.04316185]
[1746543258188,0.6294401,94176.0,94175.0,0.22116185]
[1746543259887,0.6708401,94176.0,94175.0,0.22116185]
[1746543260085,0.68148865,94176.0,94175.0,0.22116185]
[1746543260287,0.6708401,94176.0,94175.0,0.22116185]
[1746543261189,0.6708401,94176.0,94175.0,0.04316185]
[1746543261683,0.7144401,94176.0,94175.0,0.04316185]
[1746543262195,0.7144401,94176.0,94175.0,0.22116185]
[1746543262987,0.7144401,94176.0,94175.0,0.17906185]
[1746543263185,0.2124114,94171.0,94170.0,0.0429]
[1746543263393,0.5675114,94171.0,94170.0,0.0429]
[1746543263795,0.6086114,94171.0,94170.0,0.0429]
[1746543264285,0.6086114,94171.0,94170.0,0.2209]
[1746543265700,0.6086114,94171.0,94170.0,0.2659]
[1746543269396,0.5675114,94171.0,94170.0,0.2659]
[1746543269695,0.6345514,94171.0,94170.0,0.2659]
[1746543270397,0.6345514,94171.0,94170.0,0.4783137]
[1746543270589,0.6345514,94171.0,94170.0,1.7659]
[1746543271185,0.6345514,94171.0,94170.0,1.8112]
[1746543271698,0.6345514,94171.0,94170.0,2.0236137]
[1746543272194,0.0530877,94198.0,94170.0,2.167392]
[1746543272397,0.2123708,94189.0,94188.0,0.3608]
[1746543272583,0.5723708,94189.0,94188.0,0.3608]
[1746543272790,0.6395308,94189.0,94188.0,0.3608]
[1746543273193,0.6395308,94189.0,94188.0,0.5388]
[1746543273390,0.5723708,94189.0,94188.0,0.5388]
[1746543273593,0.6396908,94189.0,94188.0,0.5388]
[1746543274800,0.6814908,94189.0,94188.0,0.5388]
[1746543277592,0.6814908,94189.0,94188.0,0.178]
[1746543280201,0.2123934,94179.0,94178.0,0.3608]
[1746543280506,0.5823934,94179.0,94178.0,0.3608]
[1746543281106,0.6250934,94179.0,94178.0,0.5388]
[1746543282806,0.6250934,94179.0,94178.0,0.178]
[1746543283508,0.6665934,94179.0,94178.0,0.178]
[1746543288515,0.6250934,94179.0,94178.0,0.178]
[1746543292220,0.5823934,94179.0,94178.0,0.178]
[1746543292519,0.0015,94240.0,94233.0,0.3608]
[1746543292814,0.351,94236.0,94235.0,0.3608]
[1746543293016,0.5632649,94236.0,94235.0,0.3608]
[1746543293210,0.6314249,94236.0,94235.0,0.5388]
[1746543293517,0.6314649,94236.0,94235.0,0.5388]
[1746543293910,0.7178649,94236.0,94235.0,0.5388]
[1746543295017,0.6496649,94236.0,94235.0,0.5388]
[1746543295215,0.7849049,94236.0,94235.0,0.5388]
[1746543304223,0.7849049,94236.0,94235.0,0.3608]
[1746543305133,0.7849049,94236.0,94235.0,0.5388]
[1746543305925,0.7861049,94236.0,94235.0,0.5388]
[1746543307027,0.7860649,94236.0,94235.0,0.5388]
[1746543310432,0.2122874,94226.0,94225.0,0.3608]
[1746543310626,0.5722874,94226.0,94225.0,0.3608]
[1746543311330,0.6376874,94226.0,94225.0,0.3608]
[1746543311527,0.6376874,94226.0,94211.0,0.3608]
[1746543311528,0.212319,94212.0,94211.0,0.3608]
[1746543311728,0.2123438,94201.0,94200.0,0.3608]
[1746543311929,0.5523438,94201.0,94200.0,0.3608]
[1746543312324,0.5523438,94201.0,94200.0,0.178]
[1746543312731,0.6147438,94201.0,94200.0,0.178]
[1746543313435,0.6147438,94201.0,94200.0,0.18613747]
[1746543313936,0.4024,94201.0,94200.0,0.18613747]
[1746543314239,0.6147438,94201.0,94200.0,0.18613747]
[1746543315033,0.3721,94201.0,94200.0,0.18613747]
[1746543315231,0.44026,94201.0,94200.0,0.80848347]
[1746543315431,0.34,94201.0,94200.0,1.52543947]
[1746543315736,0.4082,94201.0,94200.0,3.02543947]
[1746543315932,0.0317,94211.0,94210.0,0.2123235]
[1746543316132,0.4699,94211.0,94210.0,0.9831235]
[1746543317330,0.6822212,94211.0,94210.0,0.5388]
[1746543317531,0.6822212,94211.0,94210.0,0.178]
[1746543318031,0.7129212,94211.0,94210.0,0.178]
[1746543320348,0.2123438,94201.0,94200.0,0.36893747]
[1746543320546,0.5823438,94201.0,94200.0,0.69893747]
[1746543320748,0.37,94201.0,94200.0,0.91128347]
[1746543321143,0.37,94201.0,94200.0,1.08928347]
[1746543321343,0.6448438,94201.0,94200.0,1.08928347]
[1746543322041,0.4325,94201.0,94200.0,1.08928347]
[1746543322242,0.46974,94201.0,94200.0,1.08928347]
[1746543323749,0.50074,94201.0,94200.0,1.08928347]
[1746543323945,0.7130838,94201.0,94200.0,1.08928347]
[1746543324941,0.43816,94201.0,94200.0,1.19543947]
[1746543325548,0.43816,94201.0,94200.0,2.69543947]
[1746543326151,0.43808,94201.0,94200.0,2.69543947]
[1746543326446,0.6504238,94201.0,94200.0,0.54693747]
[1746543326647,0.6813238,94201.0,94200.0,0.54693747]
[1746543327542,0.6813238,94201.0,94200.0,0.178]
[1746543331555,0.4009,94201.0,94200.0,0.390346]
[1746543331746,0.46902,94201.0,94200.0,0.390346]
[1746543331945,0.6813638,94201.0,94200.0,0.178]
[1746543347558,0.7141638,94201.0,94200.0,0.178]
[1746543352468,0.2123708,94189.0,94188.0,0.00159244]
[1746543352664,0.2123731,94188.0,94187.0,0.00159257]
[1746543352864,0.6166731,94188.0,94187.0,0.00159257]
[1746543355672,0.6469731,94188.0,94187.0,0.00159257]
[1746543356071,0.2124001,94176.0,94157.0,0.3608]
[1746543356375,0.2124343,94161.0,94160.0,0.2124358]
[1746543356673,0.6201143,94161.0,94160.0,0.2124362]
[1746543356876,0.40768,94161.0,94160.0,0.2124362]
[1746543357069,0.40768,94161.0,94160.0,0.22029828]
[1746543357376,0.686114,94161.0,94160.0,0.18586208]
[1746543357668,0.686114,94161.0,94160.0,0.39829828]
[1746543357879,0.686114,94161.0,94160.0,0.18586208]
[1746543358067,0.686114,94161.0,94160.0,0.39829828]
[1746543359079,0.686114,94161.0,94160.0,0.18586208]
[1746543359374,0.686114,94161.0,94160.0,0.39829828]
[1746543362067,0.686114,94161.0,94160.0,0.18586208]
[1746543363178,0.2124385,94159.0,94158.0,0.00159296]
[1746543363378,0.5924385,94159.0,94158.0,0.00159296]
[1746543363774,0.2124407,94158.0,94157.0,0.3608]
[1746543363977,0.6857407,94158.0,94157.0,0.3608]
[1746543365074,0.7537807,94158.0,94157.0,0.3608]
[1746543365276,0.7537807,94158.0,94157.0,0.5388]
[1746543365775,0.4418,94158.0,94157.0,0.751243]
[1746543366078,0.50988,94158.0,94157.0,0.751243]
[1746543367586,0.7223207,94158.0,94157.0,0.751243]
[1746543368101,0.50988,94158.0,94157.0,0.751243]
[1746543368575,0.7223207,94158.0,94157.0,0.751243]
[1746543369888,0.50988,94158.0,94157.0,0.751243]
[1746543370587,0.7223207,94158.0,94157.0,0.751243]
[1746543370883,0.4418,94158.0,94157.0,0.751243]
[1746543371088,0.7222807,94158.0,94157.0,0.751243]
[1746543372496,0.50984,94158.0,94157.0,0.751243]
[1746543372685,0.7222807,94158.0,94157.0,0.751243]
[1746543373792,0.50984,94158.0,94157.0,0.751243]
[1746543374383,0.7222807,94158.0,94157.0,0.751243]
[1746543374584,0.50984,94158.0,94157.0,0.751243]
[1746543375377,0.7222807,94158.0,94157.0,0.751243]
[1746543376094,0.4418,94158.0,94157.0,0.857447]
[1746543376296,0.50976,94158.0,94157.0,0.857447]
[1746543376688,0.50976,94158.0,94157.0,2.357447]
[1746543377791,0.47796,94158.0,94157.0,2.357447]
[1746543379495,0.032,94165.0,94164.0,0.2124272]
[1746543379696,0.49004,94165.0,94164.0,0.2124272]
[1746543380099,0.49004,94165.0,94164.0,0.3904272]
[1746543382499,0.422,94165.0,94164.0,0.3904272]
[1746543382803,0.48992,94165.0,94164.0,0.3904272]
[1746543385300,0.702345,94165.0,94164.0,0.3904272]
[1746543385993,0.48992,94165.0,94164.0,0.3904272]
[1746543387797,0.48992,94165.0,94164.0,0.7512272]
[1746543388102,0.42792,94165.0,94164.0,0.644996]
[1746543388396,0.42792,94165.0,94164.0,0.8574232]
[1746543390904,0.42788,94165.0,94164.0,0.8883232]
[1746543391103,0.36,94165.0,94164.0,0.8883232]
[1746543391998,0.13481476,94165.0,94164.0,2.6383232]
[1746543392303,0.0317,94186.0,94185.0,0.2123798]
[1746543392500,0.49018,94186.0,94185.0,0.9339798]
[1746543392704,0.49018,94186.0,94185.0,1.0401518]
[1746543393004,0.49018,94186.0,94185.0,1.0668518]
[1746543393305,0.49014,94186.0,94185.0,1.2448518]
[1746543394606,0.49014,94186.0,94185.0,1.25125303]
[1746543396108,0.4223,94186.0,94185.0,1.25125303]
[1746543396408,0.49006,94186.0,94185.0,1.25125303]
[1746543398809,0.49006,94186.0,94185.0,1.22455303]
[1746543399807,0.49006,94186.0,94185.0,1.25125303]
[1746543401710,0.49006,94186.0,94185.0,1.22455303]
[1746543404809,0.4897,94186.0,94185.0,1.22455303]
[1746543405310,0.4897,94186.0,94185.0,0.50295303]
[1746543405622,0.4897,94186.0,94185.0,0.3903798]
[1746543405623,0.7020776,94186.0,94185.0,0.3903798]
[1746543406203,0.7020776,94186.0,94185.0,0.2123798]
[1746543406709,0.2123821,94184.0,94183.0,0.573183]
[1746543407009,0.5923821,94184.0,94183.0,0.3608]
[1746543407205,0.06784,94184.0,94183.0,0.5232844]
[1746543407405,0.6402221,94184.0,94183.0,0.5232844]
[1746543407608,0.6402221,94184.0,94183.0,0.3109]
[1746543407806,0.6402221,94184.0,94183.0,0.261]
[1746543409804,0.9963981,94184.0,94183.0,0.261]
[1746543410009,0.2124182,94168.0,94167.0,0.2124199]
[1746543410312,0.212434,94162.0,94161.0,0.2124302]
[1746543410509,0.212434,94161.0,94160.0,0.5732362]
[1746543410710,0.646634,94161.0,94160.0,2.0732362]
[1746543411617,0.646634,94161.0,94160.0,1.8608]
[1746543412011,0.646634,94161.0,94160.0,2.0732362]
[1746543412314,0.646634,94161.0,94160.0,0.5732362]
[1746543413130,0.646634,94161.0,94160.0,0.7512362]
[1746543415918,0.50208,94161.0,94160.0,0.7512362]
[1746543416221,0.4023,94161.0,94160.0,0.7512362]
[1746543416518,0.4327,94161.0,94160.0,0.7512362]
[1746543417111,0.5007,94161.0,94160.0,0.7512362]
[1746543417415,0.5007,94161.0,94160.0,0.8574362]
[1746543417617,0.5007,94161.0,94160.0,0.8903362]
[1746543419604,0.5007,94161.0,94160.0,2.3903362]
[1746543420818,0.713134,94161.0,94160.0,2.3574362]
[1746543421122,0.713134,94161.0,94160.0,2.2512362]
[1746543422514,0.713134,94161.0,94160.0,2.0388]
[1746543422720,0.713134,94161.0,94160.0,2.2512362]
[1746543428328,0.4327,94161.0,94160.0,2.2512362]
[1746543428525,0.4023,94161.0,94160.0,2.2512362]
[1746543428722,0.47014,94161.0,94160.0,2.2512362]
[1746543429027,0.43784,94161.0,94160.0,2.2512362]
[1746543429228,0.43784,94161.0,94160.0,2.2826362]
[1746543429423,0.37,94161.0,94160.0,2.2826362]
[1746543430127,0.43788,94161.0,94160.0,2.2826362]
[1746543432426,0.43779394,94161.0,94160.0,2.2826362]
[1746543433627,0.65022794,94161.0,94160.0,2.2512362]
[1746543434129,0.43779394,94161.0,94160.0,2.2512362]
[1746543434523,0.50159394,94161.0,94160.0,2.2512362]
[1746543434830,0.71402794,94161.0,94160.0,2.2512362]
[1746543436029,0.50159394,94161.0,94160.0,2.2512362]
[1746543436226,0.46879394,94161.0,94160.0,2.2512362]
[1746543437827,0.68122794,94161.0,94160.0,0.5388]
[1746543438032,0.68122794,94161.0,94160.0,0.7512362]
[1746543439726,0.68122794,94161.0,94160.0,0.5388]
[1746543440216,0.68122794,94161.0,94160.0,0.3608]
[1746543440418,0.68122794,94161.0,94160.0,0.5732362]
[1746543441124,0.68122794,94161.0,94160.0,0.7512362]
[1746543441635,0.68122794,94161.0,94160.0,0.5388]
[1746543442029,0.68122794,94161.0,94160.0,0.7512362]
[1746543442228,0.46879394,94161.0,94160.0,0.7512362]
[1746543442530,0.68122794,94161.0,94160.0,0.7512362]
[1746543445230,0.46879394,94161.0,94160.0,0.7512362]
[1746543445528,0.46875394,94161.0,94160.0,0.7512362]
[1746543445734,0.40091394,94161.0,94160.0,0.7512362]
[1746543446030,0.46879394,94161.0,94160.0,0.7512362]
[1746543446229,0.46879394,94161.0,94160.0,0.8143362]
[1746543447630,0.46879394,94161.0,94160.0,2.3143362]
[1746543449935,0.46879394,94161.0,94160.0,2.6751362]
[1746543452434,0.36991394,94161.0,94160.0,2.6751362]
[1746543452630,0.12324284,94161.0,94160.0,2.7813362]
[1746543452938,0.06764,94167.0,94166.0,0.2124227]
[1746543453237,0.4,94167.0,94166.0,0.2803027]
[1746543453432,0.4,94167.0,94166.0,0.3864987]
[1746543453832,0.4,94167.0,94166.0,0.4486987]
[1746543454136,0.4,94167.0,94166.0,0.6266987]
[1746543454738,0.4,94167.0,94166.0,2.1266987]
[1746543457037,0.4,94167.0,94166.0,2.0205027]
[1746543459042,0.4,94167.0,94166.0,2.1266987]
[1746543462137,0.4,94167.0,94166.0,2.8482987]
[1746543462844,0.1142944,94167.0,94166.0,3.2644987]
[1746543463141,0.06752,94179.0,94178.0,0.2123956]
[1746543463349,0.41752,94179.0,94178.0,0.5731956]
[1746543464045,0.41752,94179.0,94178.0,0.6358956]
[1746543464246,0.41752,94179.0,94178.0,0.8138956]
[1746543464447,0.35,94179.0,94178.0,0.8138956]
[1746543464645,0.35,94179.0,94178.0,2.3138956]
[1746543465852,0.3072472,94179.0,94178.0,2.4200756]
[1746543466053,0.0530739,94223.0,94178.0,2.4200756]
[1746543466054,0.0314,94195.0,94188.0,0.053093]
[1746543466349,0.209,94195.0,94194.0,0.9339596]
[1746543466560,0.3814,94195.0,94194.0,0.9339596]
[1746543466952,0.3814,94195.0,94194.0,2.4339596]
[1746543467161,0.3814,94195.0,94194.0,2.6767596]
[1746543467453,0.35,94195.0,94194.0,2.6767596]
[1746543467849,0.35,94195.0,94194.0,2.7829236]
[1746543468251,0.3091684,94195.0,94194.0,2.7829236]
[1746543468751,0.3091684,94195.0,94194.0,2.78669076]
[1746543474354,0.3091684,94195.0,94194.0,2.75489076]
[1746543474755,0.3091684,94195.0,94194.0,2.72189076]
[1746543481064,0.3091684,94195.0,94194.0,2.61572676]
[1746543485474,0.5215257,94195.0,94194.0,2.61572676]
[1746543485776,0.5843257,94195.0,94194.0,2.61572676]
[1746543487174,0.3719684,94195.0,94194.0,2.61572676]
[1746543489082,0.3719684,94195.0,94194.0,2.67922676]
[1746543489282,0.2755874,94195.0,94194.0,2.67922676]
[1746543489479,0.0318,94204.0,94203.0,0.2123393]
[1746543489685,0.16648494,94204.0,94203.0,0.5731393]
[1746543489973,0.0015,94205.0,94204.0,0.212337]
[1746543490175,0.3416368,94205.0,94204.0,0.318489]
[1746543490383,0.1906157,94205.0,94204.0,0.328489]
[1746543490576,0.1554446,94205.0,94204.0,0.328489]
[1746543490881,0.06744,94212.0,94211.0,0.2123212]
[1746543491176,0.298936,94212.0,94211.0,2.3183612]
[1746543491381,0.1497181,94212.0,94211.0,2.42450519]
[1746543491570,0.0311,94235.0,94223.0,0.053073]
[1746543491779,0.0311,94235.0,94234.0,0.9338694]
[1746543491780,0.3011,94235.0,94234.0,0.9338694]
[1746543491982,0.27,94235.0,94234.0,0.9338694]
[1746543492182,0.27,94235.0,94234.0,1.1118694]
[1746543492381,0.27,94235.0,94234.0,2.6118694]
[1746543492884,0.3004,94235.0,94234.0,2.6118694]
[1746543493483,0.3004,94235.0,94234.0,2.61704403]
[1746543496584,0.3304,94235.0,94234.0,2.61704403]
[1746543501487,0.3618,94235.0,94234.0,2.61704403]
[1746543503392,0.3618,94235.0,94234.0,2.68428403]
[1746543504976,0.5740672,94235.0,94234.0,2.68428403]
[1746543505381,0.3618,94235.0,94234.0,2.68428403]
[1746543505683,0.3304,94235.0,94234.0,2.68428403]
[1746543505881,0.3004,94235.0,94234.0,2.68428403]
[1746543506082,0.3004,94235.0,94234.0,2.74728403]
[1746543506901,0.27,94235.0,94234.0,2.74728403]
[1746543508792,0.3023,94235.0,94234.0,2.74728403]
[1746543511495,0.3023,94235.0,94234.0,2.68428403]
[1746543511694,0.3655,94235.0,94234.0,2.68428403]
[1746543512594,0.3655,94235.0,94234.0,2.61704403]
[1746543512595,0.5777672,94235.0,94234.0,2.61704403]
[1746543515097,0.5777672,94235.0,94234.0,2.43904403]
[1746543516100,0.5777672,94235.0,94234.0,2.61704403]
[1746543517997,0.5777672,94235.0,94234.0,2.6118694]
[1746543518202,0.5777672,94235.0,94234.0,0.9338694]
[1746543518703,0.5777672,94235.0,94234.0,2.4338694]
[1746543524098,0.5777672,94235.0,94234.0,2.6118694]
[1746543526100,0.6450072,94235.0,94234.0,2.6118694]
[1746543534303,0.6450072,94235.0,94234.0,2.2510694]
[1746543534510,0.6450072,94235.0,94234.0,0.7510694]
[1746543536609,0.40034,94235.0,94234.0,0.7510694]
[1746543536812,0.6126072,94235.0,94234.0,0.7833694]
[1746543544519,0.6126072,94235.0,94234.0,0.5388]
[1746543544716,0.5453672,94235.0,94234.0,0.178]
[1746543544918,0.5453672,94235.0,94216.0,0.4138772]
[1746543544919,0.212319,94212.0,94205.0,0.3608]
[1746543545117,0.619559,94212.0,94205.0,0.3608]
[1746543545524,0.2123303,94207.0,94195.0,0.2123558]
[1746543545820,0.9531303,94207.0,94196.0,0.2123549]
[1746543546017,0.9531303,94207.0,94198.0,0.00781498]
[1746543546419,0.9858303,94207.0,94198.0,0.00781498]
[1746543546620,1.0236303,94207.0,94192.0,0.31437673]
[1746543547027,1.0236303,94207.0,94192.0,0.52674023]
[1746543547228,1.0236303,94207.0,94206.0,0.00159218]
[1746543547427,0.2123483,94199.0,94198.0,0.21117364]
[1746543547622,0.5823483,94199.0,94198.0,0.21117364]
[1746543548033,0.6885083,94199.0,94198.0,0.21117364]
[1746543548329,0.7590083,94199.0,94198.0,0.21117364]
[1746543549129,0.8262483,94199.0,94198.0,0.21117364]
[1746543550123,0.8262483,94199.0,94198.0,0.60152414]
[1746543550329,0.7200883,94199.0,94198.0,0.60152414]
[1746543550529,0.47504,94199.0,94198.0,0.67242414]
[1746543550932,0.6873883,94199.0,94198.0,0.67242414]
[1746543551227,0.43724,94199.0,94198.0,1.03322414]
[1746543551427,0.43724,94199.0,94198.0,0.8220505]
[1746543551833,0.43724,94199.0,94198.0,2.3220505]
[1746543552128,0.37,94199.0,94198.0,2.3220505]
[1746543552317,0.43724,94199.0,94198.0,2.3220505]
[1746543552520,0.6495883,94199.0,94198.0,2.3220505]
[1746543555430,0.43724,94199.0,94198.0,2.3220505]
[1746543557633,0.6495883,94199.0,94198.0,2.3220505]
[1746543558024,0.43724,94199.0,94198.0,2.3220505]
[1746543559426,0.06724,94200.0,94199.0,0.2123483]
[1746543559632,0.2654113,94210.0,94209.0,0.2123257]
[1746543559826,0.7326513,94210.0,94209.0,0.5731257]
[1746543560126,0.6795703,94210.0,94209.0,2.2511257]
[1746543560328,0.46724,94210.0,94209.0,2.2511257]
[1746543562629,0.4,94210.0,94209.0,2.35727369]
[1746543562831,0.3397279,94210.0,94209.0,2.35727369]
[1746543563225,0.2473972,94210.0,94209.0,2.60727369]
[1746543563422,0.1791698,94210.0,94209.0,2.60727369]
[1746543563628,0.0356,94233.0,94232.0,0.2122739]
[1746543563835,0.0356,94233.0,94232.0,0.5730739]
[1746543563836,0.4056,94233.0,94232.0,0.5730739]
[1746543564024,0.43724,94233.0,94232.0,0.5730739]
[1746543564335,0.43724,94233.0,94232.0,2.2510739]
[1746543564529,0.47184,94233.0,94232.0,2.2510739]
[1746543565037,0.6841117,94233.0,94232.0,2.2510739]
[1746543566241,0.6841117,94233.0,94232.0,2.25747898]
[1746543568238,0.6841117,94233.0,94232.0,1.678]